Cogmind - Beta 15 @@@ ROGUE MODE // 2025.08.02 @ 11:21:16 Player: winnking222 Result: Destroyed by G-47 Trooper with Particle Gun Performance ------------- Evolutions (1) 500 Regions Visited (6) 1200 Robots Destroyed (90) 450 Value Destroyed (2265) 2265 Prototype IDs (31) 620 Alien Tech Used (0) 0 Bonus (300) 300 TOTAL SCORE: 5335 Bonus ------- Aligned with FarCom 300 Cogmind --------- Core Integrity 0/400 Matter 288/300 Energy 310/310 System Corruption 0% Temperature Cool (9) Movement Walking (190) Ox1 Location -8/Mines Parts ------- > --- POWER (1) -------- Reinforced Fission Core > --- PROPULSION (3) --- Aluminum Leg Aluminum Leg Improved Aluminum Leg > --- UTILITY (2) ------ Improved Heat Sink Large Storage Unit > --- WEAPON (3) ------- AWS/Thermal Improved Assault Rifle > --- INVENTORY (15) --- Light Deuterium Engine Aluminum Leg Aluminum Leg Experimental Heat Sink Gravity Neutralizer Experimental Sensor Array Improved Signal Interpreter Advanced Weapon Cycler Trap Reconfigurator Particle Gun Heavy Assault Rifle Heavy Assault Rifle 8R-AWN's Boregun Bore Cannon Rocket Launcher Peak State ------------ > --- POWER ------------ Reinforced Fission Core > --- PROPULSION ------- Aluminum Leg Aluminum Leg Improved Aluminum Leg > --- UTILITY ---------- Improved Heat Sink Large Storage Unit > --- WEAPON ----------- AWS/Thermal Improved Assault Rifle > --- INVENTORY -------- Light Deuterium Engine Light Nuclear Core Aluminum Leg Experimental Heat Sink Gravity Neutralizer Experimental Sensor Array Improved Signal Interpreter Advanced Weapon Cycler Trap Reconfigurator Particle Gun Heavy Assault Rifle Heavy Assault Rifle 8R-AWN's Boregun Bore Cannon Rocket Launcher [Rating: 40] Favorites ----------- Power Heavy Ion Engine Engine Heavy Ion Engine Power Core Reinforced Fission Core Propulsion Light Treads Treads Light Treads Leg Aluminum Leg Flight Unit Improved Flight Unit Utility Large Storage Unit Device Seismic Detector Storage Large Storage Unit Protection Light Armor Plating Weapon Improved Assault Rifle Energy Gun EM Pulse Gun Ballistic Gun Improved Assault Rifle Launcher Rocket Launcher Build | -11 -10 -10 -9 -9 -9 -8 ------- Run | Yrd Mat Min Mat Min Exi Min Slots Evolved 2 | . . . 2 . . . Power . | . . . . . . . Propulsion 1 | . . . 1 . . . Utility . | . . . . . . . Weapon 1 | . . . 1 . . . Parts Attached 64 | 7 9 1 27 2 9 9 Power 6 | 1 1 . 1 . 1 2 Engine 5 | 1 1 . 1 . 1 1 Core 1 | . . . . . . 1 Reactor . | . . . . . . . Propulsion 19 | 2 2 . 10 . 1 4 Treads 12 | . 2 . 9 . 1 . Leg 6 | 2 . . . . . 4 Wheel . | . . . . . . . Hover . | . . . . . . . Flight 1 | . . . 1 . . . Utility 16 | 2 2 1 4 2 3 2 Device 8 | 1 1 . . 1 3 2 Storage 3 | 1 . . 2 . . . Processor . | . . . . . . . Hackware . | . . . . . . . Protection 5 | . 1 1 2 1 . . Artifact . | . . . . . . . Weapon 23 | 2 4 . 12 . 4 1 Energy Gun 4 | 2 . . 1 . . 1 Energy Cannon . | . . . . . . . Ballistic Gun 17 | . 3 . 10 . 4 . Ballistic Cannon . | . . . . . . . Launcher 2 | . 1 . 1 . . . Special Weapon . | . . . . . . . Impact Weapon . | . . . . . . . Slashing Weapon . | . . . . . . . Piercing Weapon . | . . . . . . . Special Melee Weapon . | . . . . . . . Unidentified Prototypes 8 | . . . 4 . 4 . Parts Lost 22 | . 3 1 4 3 8 3 Power 3 | . 1 . . . 1 1 Propulsion 5 | . . . 1 1 3 . Utility 5 | . . 1 1 2 . 1 Weapon 9 | . 2 . 2 . 4 1 Highest Loss Streak 6 | . 1 1 2 3 6 1 To Critical Strikes 6 | . . . 1 . 5 . Average Backups 9 | 4 7 5 8 12 10 14 Power 1 | . . . . 2 3 1 Propulsion 1 | 1 1 1 1 1 1 1 Utility 2 | . 3 2 1 1 . 5 Weapon 4 | . 2 2 4 6 5 5 Tool/Special . | . . . . . . . Unused Backups 19 | . 1 1 3 1 5 8 Power 6 | . . . 1 . 4 1 Propulsion 3 | . . . . . 1 2 Utility 5 | . . . 1 1 . 3 Weapon 5 | . 1 1 1 . . 2 Tool/Special . | . . . . . . . Average Slot Usage (%) 96 | . 99 100 97 97 94 84 Engine 11 | . 14 14 11 11 11 9 Treads 24 | . 9 28 31 30 29 . Leg 5 | . 18 . . . . 29 Device 3 | . 11 . . 4 . 8 Storage 11 | . 14 14 11 11 11 11 Protection 8 | . 2 14 10 6 10 1 Energy Gun 2 | . 9 . . . . 10 Ballistic Gun 27 | . 17 27 31 33 32 11 Peak Build Rating 40 | 7 7 7 20 24 33 40 Average Rating 18 | 5 6 6 16 20 23 35 On Entrance 12 | . 7 7 7 20 24 22 Naked Turns . | . . . . . . . Heaviest Build 53 | 15 15 15 40 40 41 53 Greatest Support 63 | 20 40 40 63 63 63 33 Greatest Overweight (x) 13 | . . . . . 12 13 Average Overweight (x) . | . . . . . . 1 Largest Inventory Capacity 15 | 8 8 8 15 15 15 15 Average Capacity 12 | 7 8 8 12 15 15 15 Most Carried 15 | 6 8 8 15 15 15 15 Average Carried 11 | 4 7 7 11 14 13 14 Final Capacity 15 | 8 8 8 15 15 15 15 Final Carried 15 | 6 7 8 15 15 13 15 Class Distribution -------------------- 43% | Tank 29% | Mutant 9% | Scavenger-Tank 8% | Gunner 7% | Scavenger-Gunner Dominant Class ---------------- Mutant | -10/Materials Mutant | -10/Mines Tank | -9/Materials Tank | -9/Mines Tank | -9/Exiles Scavenger-Gunner | -8/Mines Resources | -11 -10 -10 -9 -9 -9 -8 ----------- Run | Yrd Mat Min Mat Min Exi Min Matter Collected 2093 | 270 168 126 777 214 111 427 Remotely . | . . . . . . . Salvage Created 3094 | 108 576 148 1192 366 99 605 Parts 215 | 15 51 4 87 17 5 36 Haulers Intercepted 3 | . . . 3 . . . Recyclers Shooed 1 | 1 . . . . . . Parts Field Recycled . | . . . . . . . Retrieved Matter . | . . . . . . . Parts Self-Destructed . | . . . . . . . Prevented . | . . . . . . . Kills | -11 -10 -10 -9 -9 -9 -8 ------- Run | Yrd Mat Min Mat Min Exi Min Combat Hostiles Destroyed 70 | . 17 7 22 6 4 14 Guns 54 | . 11 3 19 6 1 14 AOE 16 | . 6 4 3 . 3 . Classes Destroyed 13 | 2 6 . 3 2 . . Worker 3 | 1 . . 2 . . . Builder 2 | . 2 . . . . . Tunneler 5 | 4 . . . . . 1 Hauler 3 | . . . 3 . . . Recycler 4 | . 1 . 1 2 . . Operator 1 | . 1 . . . . . Watcher 6 | . 2 . 4 . . . Swarmer 22 | . 9 3 4 3 . 3 Grunt 27 | . 8 4 8 . . 7 Duelist 5 | . . . 1 . . 4 Sentry 9 | . . . 9 . . . Demolisher 2 | . . . . 2 . . Assembled 4 | . . . . 1 3 . Best Kill Streak 10 | 3 7 3 10 2 3 7 Combat Bots Only 8 | . 5 3 8 2 3 6 Max Kills in Single Turn 5 | 2 5 2 4 1 2 1 Gunslinging . | . . . . . . . Exploded 3 | . 3 2 3 . 2 . Melee . | . . . . . . . Uniques/NPCs Destroyed 1 | . . . . . 1 . 8R-AWN (-9/Exiles) Combat | -11 -10 -10 -9 -9 -9 -8 -------- Run | Yrd Mat Min Mat Min Exi Min Hostile Shots Fired 353 | . 84 45 101 18 72 33 Missed 93 | . 23 18 32 3 11 6 Hits 260 | . 61 27 69 15 61 27 Melee 6 | . . . 1 . . 5 Projectile 254 | . 61 27 68 15 61 22 AOE 12 | . . . . 12 . . Critical Strikes 31 | . 3 . 4 . 21 3 Damage Taken 3938 | . 654 291 893 498 1115 487 Core 586 | . 140 33 80 69 174 90 Absorbed by Shields . | . . . . . . . Core Remaining (%) 65 | 100 . 30 . . . . Volleys Fired 245 | 12 64 18 76 21 30 24 Largest 3 | 2 2 2 3 3 3 3 Hottest 80 | 80 80 50 73 69 69 69 Shots Fired 614 | 24 118 36 221 63 72 80 Gun 597 | 24 116 28 220 63 66 80 Cannon . | . . . . . . . Launcher 17 | . 2 8 1 . 6 . Special . | . . . . . . . Kinetic 471 | . 66 28 220 63 66 28 Thermal 52 | . . . . . . 52 Explosive 17 | . 2 8 1 . 6 . Electromagnetic 74 | 24 50 . . . . . Robot Hit Streak 35 | 5 11 11 18 22 31 35 Robot Miss Streak 5 | 3 5 2 4 4 1 3 Penetration Max . | . . . . . . . Secondary Targets 4 | . . . 2 1 . 1 Max Gunslinging Chain 1 | . . . 1 1 . 1 Autonomous 52 | . . . . . . 52 Shots Hit Robots 401 | 15 65 22 141 38 57 63 Core Hits 175 | 5 34 14 62 15 19 26 Critical Kills 4 | . . . 2 1 . 1 Critical Parts Destroyed 2 | . . . . . 1 1 Critical Strikes 8 | . . . 3 1 2 2 Destroy 8 | . . . 3 1 2 2 Melee Attacks . | . . . . . . . Impact . | . . . . . . . Slashing . | . . . . . . . Piercing . | . . . . . . . Sneak Attacks . | . . . . . . . Combat Hostiles . | . . . . . . . Follow-up Attacks . | . . . . . . . Damage Inflicted 7039 | 277 1315 557 1680 580 1090 1540 Guns 5558 | 222 689 131 1552 580 844 1540 Cannons . | . . . . . . . Explosions 1469 | 55 615 425 128 . 246 . Melee . | . . . . . . . Ramming 12 | . 11 1 . . . . Kinetic 3698 | . 328 131 1552 580 844 263 Thermal 1675 | 55 343 . . . . 1277 Explosive 1071 | . 272 425 128 . 246 . Electromagnetic 583 | 222 361 . . . . . Impact . | . . . . . . . Slashing . | . . . . . . . Piercing . | . . . . . . . Highest Corruption . | . . . . . . . Average Corruption . | . . . . . . . Corruption Purged . | . . . . . . . Corruption Blocked . | . . . . . . . Overload Shots . | . . . . . . . Overflow Damage 57 | . 50 . . . 7 . Projectiles . | . . . . . . . Explosions 57 | . 50 . . . 7 . Melee . | . . . . . . . Knockbacks . | . . . . . . . Impact . | . . . . . . . Kinetic . | . . . . . . . Secondary . | . . . . . . . Self-Inflicted Damage 133 | . 88 25 . . 20 . Shots 6 | . 3 2 . . 1 . Rammed 2 | . 1 1 . . . . Targets Rammed 3 | . 2 1 . . . . Kicked 1 | . 1 . . . . . Crushed . | . . . . . . . Highest Temperature 126 | 54 126 62 120 33 63 27 Average Temperature 27 | 22 31 17 34 8 22 13 Received Heat Transfer 711 | . 153 72 306 . . 180 Siege Activations . | . . . . . . . Martial Activations . | . . . . . . . Shielding Activations . | . . . . . . . Robots Disrupted . | . . . . . . . Combat Hostiles . | . . . . . . . Robots Corrupted . | . . . . . . . Combat Hostiles . | . . . . . . . Parts Fried 1 | . 1 . . . . . Impact Corruptions . | . . . . . . . Robots Melted . | . . . . . . . Combat Hostiles . | . . . . . . . Parts Melted . | . . . . . . . Heat Transferred 2028 | 50 350 . . . . 1628 Parts Sabotaged . | . . . . . . . Parts Stolen . | . . . . . . . Parts Stripped . | . . . . . . . Power Chain Reactions 5 | 1 4 . . . . . Alert | -11 -10 -10 -9 -9 -9 -8 ------- Run | Yrd Mat Min Mat Min Exi Min Maximum Alert Level 1 | . 1 . 1 . . . Low Security (%) 86 | 100 79 100 67 100 . 100 Level 1 13 | . 20 . 32 . . . Level 2 . | . . . . . . . Level 3 . | . . . . . . . Level 4 . | . . . . . . . Level 5 . | . . . . . . . High Security . | . . . . . . . Max Security . | . . . . . . . Peak Influence 281 | 10 281 127 273 80 . 148 Initial 58 | . . 58 . . . . Average 90 | . 145 40 167 6 . 41 Influence Increases 2015 | 25 562 223 687 175 . 343 Destroy 0b10 Robot/C 1300 | . 340 140 440 100 . 280 Destroy 0b10 Robot/NC 120 | 25 30 . 50 10 . 5 Destroy Leader 318 | . 64 30 154 20 . 50 Successful Hack 38 | . 20 . 18 . . . Disable Machine 90 | . 30 30 15 15 . . Destroy Structure 74 | . 33 23 10 . . 8 Lose Combat Pursuer 75 | . 45 . . 30 . . Influence Decreases 1956 | 25 412 373 686 176 . 284 Entered New Map 93 | . . 92 . 1 . . Time Decay 1603 | 25 382 271 516 155 . 254 Lost Part 100 | . 30 10 20 10 . 30 Lost Ally 10 | . . . . 10 . . Purge Threat 150 | . . . 150 . . . Squads Dispatched 6 | . 2 . 4 . . . Investigation 2 | . 2 . . . . . Extermination . | . . . . . . . Reinforcement 4 | . . . 4 . . . Assault . | . . . . . . . Garrison . | . . . . . . . Intercept . | . . . . . . . Searches Triggered . | . . . . . . . Construction Impeded 1 | . . . 1 . . . Haulers Reinforced . | . . . . . . . Active Scanning Responses . | . . . . . . . Cargo Convoy Interrupts . | . . . . . . . Stealth | -11 -10 -10 -9 -9 -9 -8 --------- Run | Yrd Mat Min Mat Min Exi Min Distress Signals 3 | . 1 . 2 . . . Communications Jammed . | . . . . . . . Distress Signals . | . . . . . . . Times Spotted 99 | . 29 7 35 7 6 15 Peak Tracking Total 11 | . 5 3 4 3 11 6 Tactical Retreats 6 | . 3 . . 1 2 . Traps | -11 -10 -10 -9 -9 -9 -8 ------- Run | Yrd Mat Min Mat Min Exi Min Traps Triggered 1 | . 1 . . . . . Indirectly . | . . . . . . . Trap Hack Attempts . | . . . . . . . Triggered . | . . . . . . . Disarmed . | . . . . . . . Reprogrammed . | . . . . . . . Reused 1 | . . . . . 1 . Traps Extracted . | . . . . . . . Installed 2 | . . . . . 2 . Triggered . | . . . . . . . Most Traps Carried 3 | . . 3 3 3 2 . Machines | -11 -10 -10 -9 -9 -9 -8 ---------- Run | Yrd Mat Min Mat Min Exi Min Machines Disabled 11 | . 2 2 1 1 5 . Max in Single Turn 1 | . 1 1 1 1 1 . Machines Repaired . | . . . . . . . Machines Dismantled . | . . . . . . . Machines Sabotaged . | . . . . . . . Overloaded Fab Kills . | . . . . . . . Hacking | -11 -10 -10 -9 -9 -9 -8 --------- Run | Yrd Mat Min Mat Min Exi Min Machines Accessed 17 | . 6 . 9 . 2 . Terminals 14 | . 6 . 8 . . . Fabricators . | . . . . . . . Repair Stations . | . . . . . . . Recycling Units . | . . . . . . . Scanalyzers 1 | . . . 1 . . . Garrison Access . | . . . . . . . Total Hacks 45 | . 18 . 25 . 2 . Successful 31 | . 13 . 16 . 2 . Failed 14 | . 5 . 9 . . . Catastrophic . | . . . . . . . Database Lockouts . | . . . . . . . Manual 33 | . 15 . 17 . 1 . Terminals 41 | . 18 . 23 . . . Fabricators . | . . . . . . . Repair Stations . | . . . . . . . Recycling Units . | . . . . . . . Scanalyzers 2 | . . . 2 . . . Garrison Access . | . . . . . . . Terminal Hacks 8 | . 3 . 3 . 2 . Record 1 | . . . . . 1 . Emergency Access Points 1 | . 1 . . . . . Unreport Threat 1 | . . . 1 . . . Locate Traps 1 | . . . 1 . . . Hauler Manifests 2 | . 1 . 1 . . . Zone Layout 1 | . 1 . . . . . Proto ID Catalog 1 | . . . . . 1 . Fabricator Hacks . | . . . . . . . Repair Station Hacks . | . . . . . . . Recycling Unit Hacks . | . . . . . . . Scanalyzer 2 | . . . 2 . . . Insert Component 1 | . . . 1 . . . Analyze 1 | . . . 1 . . . Garrison Access Hacks . | . . . . . . . Unauthorized Hacks 21 | . 10 . 11 . . . Terminals 21 | . 10 . 11 . . . Assimilate 1 | . . . 1 . . . Botnet 9 | . 5 . 4 . . . Skim 11 | . 5 . 6 . . . Fabricators . | . . . . . . . Repair Stations . | . . . . . . . Recycling Units . | . . . . . . . Scanalyzers . | . . . . . . . Garrison Access . | . . . . . . . Data Cores Recovered 1 | . 1 . . . . . Used . | . . . . . . . Hacking Detections 11 | . 5 . 6 . . . Full Trace Events 2 | . 1 . 1 . . . Feedback Events . | . . . . . . . Feedback Blocked . | . . . . . . . Robot Schematics Acquired . | . . . . . . . Robots Built . | . . . . . . . Authchips . | . . . . . . . Time . | . . . . . . . Total Robot Build Rating . | . . . . . . . Part Schematics Acquired 1 | . . . 1 . . . Parts Built . | . . . . . . . Authchips . | . . . . . . . Time . | . . . . . . . Total Part Build Rating . | . . . . . . . Parts Repaired . | . . . . . . . Time . | . . . . . . . Parts Recycled . | . . . . . . . Recycled Matter . | . . . . . . . Retrieved Matter . | . . . . . . . Retrieved Components . | . . . . . . . Parts Scanalyzed 1 | . . . 1 . . . Part Schematics Acquired 1 | . . . 1 . . . Parts Damaged . | . . . . . . . Bothacking | -11 -10 -10 -9 -9 -9 -8 ------------ Run | Yrd Mat Min Mat Min Exi Min Used RIF Installer . | . . . . . . . Robots Hacked . | . . . . . . . Non-combat . | . . . . . . . Combat . | . . . . . . . Robot Hacks Applied . | . . . . . . . Relay Couplers Released . | . . . . . . . Fabnet Peak Effective % . | . . . . . . . Robots Rewired . | . . . . . . . Allies Hacked . | . . . . . . . Hacks Repelled . | . . . . . . . Allies | -11 -10 -10 -9 -9 -9 -8 -------- Run | Yrd Mat Min Mat Min Exi Min Total Allies 1 | . . . 1 . . . Largest Group 1 | . . . 1 1 . . Highest-Rated Group 10 | . . . 10 10 . . Highest-Rated Ally 10 | . . . 10 10 . . Total Orders . | . . . . . . . Ally Attacks . | . . . . . . . Total Damage . | . . . . . . . Kills . | . . . . . . . Allies Corrupted . | . . . . . . . Allies Melted . | . . . . . . . Intel | -11 -10 -10 -9 -9 -9 -8 ------- Run | Yrd Mat Min Mat Min Exi Min Active Infowar (turns) 1601 | 103 966 . . 528 1 3 Sensors 1 | . . . . . 1 . Terrain 3 | . . . . . . 3 Seismic 1597 | 103 966 . . 528 . . Robot Analysis Total . | . . . . . . . Derelict Logs Recovered 3 | . . 2 . 1 . . Drone Launches . | . . . . . . . Drone Recoveries . | . . . . . . . Exploration | -11 -10 -10 -9 -9 -9 -8 ------------- Run | Yrd Mat Min Mat Min Exi Min Turns Passed 8396 | 189 1195 923 1871 1276 2196 746 Spaces Moved 4433 | 122 658 456 939 722 1202 334 Core 31 | 18 . . . . 6 7 Treads 3476 | . 161 456 939 722 1196 2 Legs 926 | 104 497 . . . . 325 Wheels . | . . . . . . . Hover . | . . . . . . . Flight . | . . . . . . . Fastest Speed 50 | 50 120 160 160 160 160 120 Average Speed 159 | 109 129 160 160 160 168 200 Slowest Speed 700 | 120 160 160 160 160 650 700 Overloaded Moves . | . . . . . . . Propulsion Burnouts . | . . . . . . . Robots Hopped . | . . . . . . . Potential Cave-ins . | . . . . . . . Cave-ins Triggered . | . . . . . . . Exploration Rate (%) 77 | 6 94 96 86 96 89 72 Regions Visited 6 Branch Regions 4 Pre-discovered Areas 5 | . 2 . 2 . 1 . Known Exits Taken 1 | . . . 1 . . . Unknown Exits Taken 5 | 1 1 1 . 1 1 . Scrap Searched 4 | . . 1 . 1 . 2 Spaces Dug . | . . . . . . . Terrain Destroyed 93 | 6 29 32 9 . 9 8 Melee . | . . . . . . . Projectile 8 | . . . . . . 8 AOE 85 | 6 29 32 9 . 9 . Terrain Rammed . | . . . . . . . Walls Destroyed . | . . . . . . . Machines Disabled . | . . . . . . . Actions | -11 -10 -10 -9 -9 -9 -8 --------- Run | Yrd Mat Min Mat Min Exi Min Total 5344 | 153 893 618 1177 796 1322 385 Wait 445 | . 150 131 83 43 35 3 Move 4427 | 121 657 455 938 721 1201 334 Hop . | . . . . . . . Pick Up 79 | 13 7 4 19 5 21 10 Fast Attach 10 | . 1 . 7 . . 2 Attach 34 | 7 4 1 5 3 9 5 Detach . | . . . . . . . Swap 41 | . 4 6 22 1 6 2 Drop 58 | . 4 2 27 2 18 5 Fire 245 | 12 64 18 76 21 30 24 Melee . | . . . . . . . Ram . | . . . . . . . Kick 1 | . 1 . . . . . Crush 2 | . 1 1 . . . . Escape Stasis . | . . . . . . . Rewire . | . . . . . . . Trap 2 | . . . . . 2 . Miscellaneous . | . . . . . . . Route ------- -11/Scrapyard -10/Materials (discovered 5 exits: *Mat x3 / [*Min] / [*Sub]) -10/Mines (discovered 3 exits: *Mat x2 / [*Sub]) -9/Materials (discovered 5 exits: *Mat x3 / *Min x2) -9/Mines (discovered 4 exits: *Mat x2 / *Exi / [*Zio]) -9/Exiles -8/Mines (discovered 2 exits: *Mat x2) History --------- Turn | Location | Event 5 | -11/Scrapyard | Discovered new exit (range 15) 190 | -11/Scrapyard | Entered Materials 305 | -10/Materials | Build established: Mutant 610 | -10/Materials | Discovered new exit (range 7) 722 | -10/Materials | Discovered new exit (range 15) 778 | -10/Materials | Discovered new exit (range 5) 890 | -10/Materials | Derelicts attacked the area 957 | -10/Materials | Discovered new exit (range 10) 1120 | -10/Materials | Discovered new exit (range 12) 1172 | -10/Materials | Learned 2 Storage zone layouts 1177 | -10/Materials | Core integrity fell below 50% 1209 | -10/Materials | Learned 4 Subcaves zone layouts 1234 | -10/Materials | Learned location of Storage (-8) 1265 | -10/Materials | Loaded intel: 1 repair station location 1385 | -10/Materials | Entered Mines 1385 | -10/Mines | Discovered new exit (range 11) 1458 | -10/Mines | Discovered new exit (range 5) 1714 | -10/Mines | Discovered new exit (range 4) 1735 | -10/Mines | Learned 2 Materials zone layouts 1828 | -10/Mines | Found a hidden stash of uninstalled traps 1860 | -10/Mines | Received a Rocket Launcher from a helpful Derelict 2018 | -10/Mines | Learned location of 1 exit from Materials 2308 | -10/Mines | Entered Materials 2308 | -9/Materials | Evolved 2 slots: Propulsion x1, Weapon x1 2309 | -9/Materials | Identified exit to Materials 2310 | -9/Materials | Identified exit to Mines 2583 | -9/Materials | Destroyed 8 combat bots 3038 | -9/Materials | Build established: Scavenger-Tank 3175 | -9/Materials | Discovered exit to Materials (range 16) 3495 | -9/Materials | Loaded intel: 17 trap records 3583 | -9/Materials | Build established: Tank 3749 | -9/Materials | Learned location of Recycling (-8) 3805 | -9/Materials | Learned Storage emergency access door positions 3842 | -9/Materials | Discovered exit to Mines (range 4) 3871 | -9/Materials | Learned location of 1 exit from Recycling 4179 | -9/Materials | Entered Mines 4179 | -9/Mines | Accompanied by 1 ally 4180 | -9/Mines | A Derelict revealed a hidden shortcut to a safe place 4280 | -9/Mines | Discovered exit to Materials (range 5) 4402 | -9/Mines | Deemed a non-threat by the Exiles lab entrance 4402 | -9/Mines | Discovered new exit (range 5) 4668 | -9/Mines | Discovered exit to Materials (range 8) 4785 | -9/Mines | Assembled infested the area 4856 | -9/Mines | Lost 3 parts (1n2u) 5054 | -9/Mines | A weapon hastily lodged in a ceiling crevice suddenly fell to the ground 5112 | -9/Mines | Found a damaged Exp. Sensor Array with a note attached 5116 | -9/Mines | Found Prototype Device 5136 | -9/Mines | Build established: Gunner 5455 | -9/Mines | Entered Exiles 5499 | -9/Exiles | Met 8R-AWN 5521 | -9/Exiles | Met EX-HEX 5566 | -9/Exiles | Met EX-BIN 5583 | -9/Exiles | Aligned with FarCom system 5585 | -9/Exiles | Given EX-Vault access code 5622 | -9/Exiles | Opened EX-Vault 5651 | -9/Exiles | Build established: Tank 5665 | -9/Exiles | Warned to stay clear of 0b10 Research branches 5715 | -9/Exiles | Learned location of Zion (-7) 5800 | -9/Exiles | Met EX-DEC 6066 | -9/Exiles | Found AWS/Thermal 6318 | -9/Exiles | Found Trap Reconfigurator 6572 | -9/Exiles | Found Flying Fortress v7 6888 | -9/Exiles | Visited The Gauntlet 7078 | -9/Exiles | Discovered new exit (range 15) 7190 | -9/Exiles | Attacked by the Exiles 7314 | -9/Exiles | Core integrity fell below 50% 7344 | -9/Exiles | Destroyed 8R-AWN 7371 | -9/Exiles | Lost 6 parts (1p2n3w) 7411 | -9/Exiles | Found Prototype Ballistic Gun 7412 | -9/Exiles | Identified 8R-AWN's Boregun 7424 | -9/Exiles | Identified Exp. Sensor Array 7534 | -9/Exiles | Core integrity fell below 20% 7651 | -9/Exiles | Stole two prototypes: Trap Reconfigurator, AWS/Thermal 7651 | -9/Exiles | Entered Mines 8060 | -8/Mines | Build established: Scavenger-Gunner 8166 | -8/Mines | Discovered exit to Materials (range 10) 8327 | -8/Mines | Discovered exit to Materials (range 10) 8388 | -8/Mines | Found a Scrap Suit stashed away for nefarious purposes 8397 | -8/Mines | Destroyed by G-47 Trooper with Particle Gun Last Messages --------------- 08267_ Imp. Ion Engine destroyed. 08271_ Destroyed Imp. Aluminum Leg. 08272_ L-31 Rogue heat damages Imp. Ion Engine. 08272_ L-31 Rogue destroyed. 08278_ G-47 Trooper destroyed. 08279_ Acquired 20 matter. 08286_ Acquired Lgt. Nuclear Core. 08300_ Dropped Lgt. Nuclear Core. 08301_ Acquired Aluminum Leg. 08302_ Acquired 10 matter. 08327_ EXIT=FOUND: MATERIALS 08370_ G-47 Trooper destroyed. 08373_ K-01 Serf collects debris. 08384_ Acquired 3 matter. 08388_ A message is left with an item here: "H4-X0R! I managed to smuggle one out! Take this to the hideout, the fools near Old Recycling think they can use this tech to beat 0b10 one day, and now we just have to find a way to safely deliver this to MAIN.C to get on their good side and convince them to let us into the system." 08393_ L-31 Rogue destroyed. Map ----- +----------------------------------------------------+ | | | ?????????????????????????????????????????????????? | | ?????????????????????????????????????????????????? | | ?????????????????????????????????????????????????? | | ????????????????????????????????????????#######??? | | ??????????????????????????????####??????# #??? | | ?????????????????????????????## ##?????# """ #??? | | ?????????????????????????????# #?????# """ #### | | ????????????????????????????## #?????# """ | | ????????????????????####????# #####?# #### | | ???????????????????## ##???# #?# #??? | | ???????????????????# #???# #### #?#### ##??? | | ???????????????????# ##?## ##??# ##???# #???? | | ???????????????????## ### ##??## ##??# ##### | | ????????????????????## #???# #??# | | ?????????????????????## #???# ##?##### | | ??????????????????????## < ##??## ###???# | | ???????????????????????## ##??## % ##### | | ????????????????????????## ##??## /%= ## | | ?????????????????????###### #####*= ## | | ?????????????????????# * %!#### | | ?????????????????????# #### ########??# | | ?????????????????????# #### #?????????## < | | ????????????????????## # #??????????###### ### | | ????????????????????# ! =##??????????????# ##?? | | ????????????????????# @ % #??????????????# #??? | | ????????????????????# #??????????????# #??? | | ???????????????????# ##??????????????# #??? | | ##?????????????????# ;; ;#???????????????# #??? | | #?????????????????## ##;!##???????????????# #??? | | #??????????????????## ?##%*????????????????# #### | | #?????????? ???????#???#g#????????????????# # | | #????????? ??????????# #????????????????### # | | ##??????? ??????????# ;??????????????????# # | | #####?## #?????????# #?????????????????## | | % = ### #?????????# ?????????????????# | | % #??????????###?????????????????# | | # #???????????????????????????????# | | ?# #??#???????????????????????###### | | ??# ### ?????????????????????## ## | | #### ????????????????????## ### | | ???????????????????# ### | | ?????????????????#?# | | ### #????????????????? ??# | | ??# ### #????????????????????? ??## ### | | ??## ##?# ?????????????????####?? ???# """ ##? | | ???# #??# #####????????????? #?? ???# """ #? | | #### #??# #?????????????# #?? ???## """ #? | | # #??# ### #?????????????# #?# #??## ## | | #### #?# #??????????#### #?# #??# # | +----------------------------------------------------+ Best States ------------- Heat Dissipation 42 Energy Generation 19 Energy Capacity 310 Matter Stores 300 Matter Capacity 300 Sight Range 16 Terrain Scan Range 16 Terrain Scan Density 10 Additional Mass Support 12 Armor Coverage 150 Evasion (%) 55 Recoil Reduction 3 Item Schematics ----------------- Imp. Assault Rifle | -9/Materials | Scanalyzed Robot Schematics ------------------ None Fabricated ------------ Nothing Repaired ---------- Nothing Alien Tech Used ----------------- None Achievements -------------- None Challenges ------------ None Game ------ Seed CoordinationOmegaBattery Manual? 0 Play Time 00:45:31 Cumulative 113.3 hours Start 2025.08.02 @ 10:34:48 End 2025.08.02 @ 11:21:16 Sessions 3 Manual Loads 0 Difficulty Rogue Special Mode None Game No. 177 Rogue 177 Adventurer 0 Explorer 0 Win Type - Total 1 Types 1/0/0/0/0/0/0/0/0/0 Lore% 67 Gallery% 58 Achievement% 51 Wizard Run 0 Options --------- Layout 0 ASCII 0 Keyboard 0 Movement Mouse Keybinds 0 Fullscreen 1 Font 16/SmallcapsGlow Map View 75x55 Zoom Use 0% Tactical HUD 1 Map Filters NONE Filters NONE Steam 1 RUN: da78b9e0-f947-47a4-995d-416c1fc6a4f5